[Event "*** SCC Grand Prix: Titled Tuesday Blitz"]
[Site "Chess.com"]
[Date "2020.08.11"]
[Round "8"]
[White "Azatic"]
[Black "Supernotar"]
[Result "0-1"]
[WhiteElo "2541"]
[BlackElo "2710"]
[TimeControl "180+1"]
[EndTime "11:33:58 PDT"]
[Termination "Supernotar won by checkmate"]

1. e4 {[%clk 0:03:00.9]} 1... c6 {[%clk 0:02:57.8]} 2. d4 {[%clk 0:03:00.7]}
2... d5 {[%clk 0:02:58.7]} 3. e5 {[%clk 0:03:01.1]} 3... Bf5 {[%clk 0:02:58.3]}
4. Nf3 {[%clk 0:03:01.4]} 4... e6 {[%clk 0:02:58.4]} 5. Be2 {[%clk 0:03:01.9]}
5... Nd7 {[%clk 0:02:57.9]} 6. O-O {[%clk 0:03:02.4]} 6... h6 {[%clk 0:02:57.6]}
7. b3 {[%clk 0:03:02.2]} 7... Ne7 {[%clk 0:02:57.6]} 8. c4 {[%clk 0:03:02.6]}
8... Bg6 {[%clk 0:02:57.1]} 9. Nc3 {[%clk 0:03:01.5]} 9... Nf5 {[%clk
0:02:57.2]} 10. Bd3 {[%clk 0:02:57.9]} 10... Be7 {[%clk 0:02:55.9]} 11. Ne2
{[%clk 0:02:57.1]} 11... O-O {[%clk 0:02:35.6]} 12. Nf4 {[%clk 0:02:44.4]} 12...
Bh7 {[%clk 0:02:33.7]} 13. Qc2 {[%clk 0:02:42.9]} 13... Kh8 {[%clk 0:02:17.1]}
14. cxd5 {[%clk 0:02:07.4]} 14... cxd5 {[%clk 0:02:14.6]} 15. Nxd5 {[%clk
0:02:04]} 15... Nxd4 {[%clk 0:01:48.5]} 16. Nxd4 {[%clk 0:01:53.6]} 16... Bxd3
{[%clk 0:01:44.9]} 17. Qxd3 {[%clk 0:01:52.9]} 17... Nxe5 {[%clk 0:01:40.5]} 18.
Qh3 {[%clk 0:01:37.6]} 18... Qxd5 {[%clk 0:01:38]} 19. Bb2 {[%clk 0:01:37.8]}
19... Bf6 {[%clk 0:01:30]} 20. Rad1 {[%clk 0:01:37.1]} 20... Qe4 {[%clk
0:01:25.8]} 21. Rfe1 {[%clk 0:01:26.6]} 21... Qg6 {[%clk 0:01:25.9]} 22. Nxe6
{[%clk 0:01:12.7]} 22... fxe6 {[%clk 0:01:09.6]} 23. Bxe5 {[%clk 0:01:12.2]}
23... Bxe5 {[%clk 0:01:06]} 24. Rxe5 {[%clk 0:01:13.1]} 24... Rxf2 {[%clk
0:01:01.3]} 25. Rxe6 {[%clk 0:00:25.9]} 25... Rxg2+ {[%clk 0:00:55.7]} 26. Qxg2
{[%clk 0:00:26.8]} 26... Qxe6 {[%clk 0:00:55.1]} 27. Qxb7 {[%clk 0:00:27.3]}
27... Qe3+ {[%clk 0:00:50.9]} 28. Kh1 {[%clk 0:00:26.6]} 28... Rf8 {[%clk
0:00:49.9]} 29. Rg1 {[%clk 0:00:24.4]} 29... Qd4 {[%clk 0:00:48.6]} 30. Qc6
{[%clk 0:00:18.1]} 30... Rf6 {[%clk 0:00:39.2]} 31. Qe8+ {[%clk 0:00:17.5]}
31... Kh7 {[%clk 0:00:39.2]} 32. Qe2 {[%clk 0:00:09.9]} 32... Rf2 {[%clk
0:00:27.9]} 33. Qg4 {[%clk 0:00:09.9]} 33... Qd5+ {[%clk 0:00:26.1]} 34. Rg2
{[%clk 0:00:04.4]} 34... Rf1# {[%clk 0:00:25.7]} 0-1

[Event "*** SCC Grand Prix: Titled Tuesday Blitz"]
[Site "Chess.com"]
[Date "2020.08.11"]
[Round "8"]
[White "Orest_Vovk"]
[Black "ClydeHillKid"]
[Result "1-0"]
[WhiteElo "2455"]
[BlackElo "2324"]
[TimeControl "180+1"]
[EndTime "11:34:00 PDT"]
[Termination "Orest_Vovk won by resignation"]

1. g4 {[%clk 0:03:00.9]} 1... d5 {[%clk 0:02:58]} 2. h3 {[%clk 0:02:55.6]} 2...
e5 {[%clk 0:02:52.1]} 3. Bg2 {[%clk 0:02:54.9]} 3... Nc6 {[%clk 0:02:49]} 4. c4
{[%clk 0:02:52.6]} 4... Be6 {[%clk 0:02:48.7]} 5. cxd5 {[%clk 0:02:49.5]} 5...
Bxd5 {[%clk 0:02:49.6]} 6. Bxd5 {[%clk 0:02:49.5]} 6... Qxd5 {[%clk 0:02:50.5]}
7. Nf3 {[%clk 0:02:49.7]} 7... e4 {[%clk 0:02:48.1]} 8. Nc3 {[%clk 0:02:49.7]}
8... Qc4 {[%clk 0:02:30.4]} 9. Ng5 {[%clk 0:02:44.2]} 9... Nf6 {[%clk
0:02:23.6]} 10. Qb3 {[%clk 0:02:39.4]} 10... Qxb3 {[%clk 0:02:18.6]} 11. axb3
{[%clk 0:02:40.3]} 11... Nd4 {[%clk 0:02:12.7]} 12. Ra4 {[%clk 0:02:35.5]} 12...
Nxb3 {[%clk 0:02:10.4]} 13. Kd1 {[%clk 0:02:34.8]} 13... Nc5 {[%clk 0:02:09.1]}
14. Rc4 {[%clk 0:02:33.8]} 14... Be7 {[%clk 0:01:41.6]} 15. Ngxe4 {[%clk
0:02:31.9]} 15... Nfxe4 {[%clk 0:01:36.6]} 16. Nxe4 {[%clk 0:02:32.1]} 16... Ne6
{[%clk 0:01:36.5]} 17. d3 {[%clk 0:02:28.9]} 17... O-O-O {[%clk 0:01:32.7]} 18.
Be3 {[%clk 0:02:25.1]} 18... b6 {[%clk 0:01:25.7]} 19. Kc2 {[%clk 0:02:19.7]}
19... g6 {[%clk 0:01:25.3]} 20. g5 {[%clk 0:02:17.1]} 20... Rd5 {[%clk
0:01:22.4]} 21. h4 {[%clk 0:02:12.8]} 21... Kb7 {[%clk 0:01:15.1]} 22. h5 {[%clk
0:02:12.8]} 22... Nxg5 {[%clk 0:01:07.4]} 23. hxg6 {[%clk 0:02:07.7]} 23... fxg6
{[%clk 0:01:05.9]} 24. Bd4 {[%clk 0:01:55.5]} 24... Rhd8 {[%clk 0:01:01.2]} 25.
Be3 {[%clk 0:01:32.9]} 25... h5 {[%clk 0:00:51.3]} 26. Rg1 {[%clk 0:01:28.9]}
26... b5 {[%clk 0:00:37.7]} 27. Nxg5 {[%clk 0:01:17.5]} 27... bxc4 {[%clk
0:00:32.7]} 28. dxc4 {[%clk 0:01:14.6]} 28... Rf5 {[%clk 0:00:27.5]} 29. Ne6
{[%clk 0:01:11.9]} 29... Rg8 {[%clk 0:00:23.2]} 30. Nf4 {[%clk 0:00:54.1]} 30...
Rg5 {[%clk 0:00:15.8]} 31. Ra1 {[%clk 0:00:51.2]} 31... a6 {[%clk 0:00:14.5]}
32. Nd5 {[%clk 0:00:51.2]} 32... Rg2 {[%clk 0:00:13.6]} 33. Nxe7 {[%clk
0:00:50.6]} 33... Re8 {[%clk 0:00:13.6]} 34. Nd5 {[%clk 0:00:48.6]} 34... g5
{[%clk 0:00:13.2]} 35. Kd3 {[%clk 0:00:45.9]} 35... h4 {[%clk 0:00:12.2]} 36.
Nf6 {[%clk 0:00:43.7]} 36... Re6 {[%clk 0:00:11.5]} 37. Ne4 {[%clk 0:00:43.4]}
37... g4 {[%clk 0:00:11]} 38. Rh1 {[%clk 0:00:42.3]} 38... Re8 {[%clk
0:00:08.1]} 39. Rxh4 {[%clk 0:00:40.8]} 39... Rd8+ {[%clk 0:00:08]} 40. Kc3
{[%clk 0:00:40.6]} 40... Re8 {[%clk 0:00:07.9]} 41. Nc5+ {[%clk 0:00:40]} 41...
Kc6 {[%clk 0:00:08]} 42. Rh6+ {[%clk 0:00:36.7]} 1-0

[Event "*** SCC Grand Prix: Titled Tuesday Blitz"]
[Site "Chess.com"]
[Date "2020.08.11"]
[Round "8"]
[White "diablanni"]
[Black "Roaccutane"]
[Result "1-0"]
[WhiteElo "2348"]
[BlackElo "2553"]
[TimeControl "180+1"]
[EndTime "11:34:03 PDT"]
[Termination "diablanni won by resignation"]

1. e4 {[%clk 0:01:57.3]} 1... d6 {[%clk 0:02:33.3]} 2. d4 {[%clk 0:01:56.6]}
2... Nf6 {[%clk 0:02:33.3]} 3. Nc3 {[%clk 0:01:56.9]} 3... g6 {[%clk 0:02:33.7]}
4. Be3 {[%clk 0:01:56.9]} 4... c6 {[%clk 0:02:33.9]} 5. Qd2 {[%clk 0:01:52.9]}
5... b5 {[%clk 0:02:34.1]} 6. Bd3 {[%clk 0:01:52.4]} 6... Nbd7 {[%clk 0:02:34]}
7. a4 {[%clk 0:01:52.2]} 7... b4 {[%clk 0:02:34.1]} 8. Nce2 {[%clk 0:01:52.4]}
8... a5 {[%clk 0:02:35]} 9. h3 {[%clk 0:01:51]} 9... Qc7 {[%clk 0:02:33.2]} 10.
Nf3 {[%clk 0:01:49.9]} 10... c5 {[%clk 0:02:33]} 11. c3 {[%clk 0:01:46.8]} 11...
Bb7 {[%clk 0:02:28.9]} 12. Ng3 {[%clk 0:01:43.5]} 12... c4 {[%clk 0:02:26.6]}
13. Bb1 {[%clk 0:01:18.3]} 13... b3 {[%clk 0:02:23.7]} 14. O-O {[%clk 0:01:18]}
14... h5 {[%clk 0:02:20.7]} 15. Ng5 {[%clk 0:01:15.1]} 15... h4 {[%clk
0:02:08.5]} 16. Ne2 {[%clk 0:01:15]} 16... Bh6 {[%clk 0:02:06.9]} 17. d5 {[%clk
0:01:08]} 17... Nc5 {[%clk 0:02:02.2]} 18. Qd4 {[%clk 0:00:59.8]} 18... Bg7
{[%clk 0:01:39.6]} 19. f4 {[%clk 0:00:54.2]} 19... O-O {[%clk 0:01:06.6]} 20.
Qd2 {[%clk 0:00:52.6]} 20... Bh6 {[%clk 0:00:59.6]} 21. Qe1 {[%clk 0:00:46.7]}
21... Bxg5 {[%clk 0:00:55.5]} 22. fxg5 {[%clk 0:00:46.6]} 22... Nfxe4 {[%clk
0:00:56.2]} 23. Qxh4 {[%clk 0:00:46.3]} 23... Bxd5 {[%clk 0:00:54.6]} 24. Rf4
{[%clk 0:00:29.3]} 24... Nd3 {[%clk 0:00:34.8]} 25. Bxd3 {[%clk 0:00:26.2]}
25... cxd3 {[%clk 0:00:35.7]} 26. Qh6 {[%clk 0:00:19.8]} 26... Ng3 {[%clk
0:00:09.7]} 27. Nxg3 {[%clk 0:00:17.9]} 27... Be4 {[%clk 0:00:04.6]} 28. Nxe4
{[%clk 0:00:12.3]} 1-0

[Event "*** SCC Grand Prix: Titled Tuesday Blitz"]
[Site "Chess.com"]
[Date "2020.08.11"]
[Round "8"]
[White "Zmeeed63"]
[Black "hellokostya"]
[Result "1-0"]
[WhiteElo "2227"]
[BlackElo "2374"]
[TimeControl "180+1"]
[EndTime "11:34:04 PDT"]
[Termination "Zmeeed63 won on time"]

1. d4 {[%clk 0:03:00.9]} 1... Nf6 {[%clk 0:02:58.1]} 2. c4 {[%clk 0:02:58.9]}
2... g6 {[%clk 0:02:57.3]} 3. Nc3 {[%clk 0:02:57.9]} 3... Bg7 {[%clk 0:02:56.5]}
4. Nf3 {[%clk 0:02:54.8]} 4... O-O {[%clk 0:02:53.4]} 5. Bg5 {[%clk 0:02:55]}
5... d6 {[%clk 0:02:53.4]} 6. e3 {[%clk 0:02:55.1]} 6... c5 {[%clk 0:02:49.2]}
7. Be2 {[%clk 0:02:54.4]} 7... h6 {[%clk 0:02:48.6]} 8. Bh4 {[%clk 0:02:53.6]}
8... g5 {[%clk 0:02:42.7]} 9. Bg3 {[%clk 0:02:53.1]} 9... Nh5 {[%clk 0:02:42.6]}
10. Qd3 {[%clk 0:02:49.5]} 10... Nxg3 {[%clk 0:02:32.3]} 11. hxg3 {[%clk
0:02:50.4]} 11... f5 {[%clk 0:02:29.1]} 12. O-O-O {[%clk 0:02:42.4]} 12... Nc6
{[%clk 0:02:21.8]} 13. Rh2 {[%clk 0:02:28.9]} 13... g4 {[%clk 0:02:00.5]} 14.
Nh4 {[%clk 0:02:26.7]} 14... cxd4 {[%clk 0:02:00]} 15. Nd5 {[%clk 0:02:06.7]}
15... dxe3 {[%clk 0:01:50.6]} 16. Qxe3 {[%clk 0:02:06]} 16... e6 {[%clk
0:01:46.6]} 17. Nf4 {[%clk 0:01:48.1]} 17... Qf6 {[%clk 0:01:30.7]} 18. Rd2
{[%clk 0:01:29.9]} 18... Nd4 {[%clk 0:00:56.9]} 19. Nh5 {[%clk 0:01:24.3]} 19...
Nxe2+ {[%clk 0:00:55.8]} 20. Qxe2 {[%clk 0:01:25.2]} 20... Qg5 {[%clk
0:00:43.4]} 21. Nxg7 {[%clk 0:01:24.4]} 21... Kxg7 {[%clk 0:00:44.3]} 22. Kb1
{[%clk 0:01:24.2]} 22... Bd7 {[%clk 0:00:39.4]} 23. Rxd6 {[%clk 0:01:22.2]}
23... Bc6 {[%clk 0:00:39.4]} 24. Rxe6 {[%clk 0:01:15.1]} 24... Be4+ {[%clk
0:00:33.7]} 25. Rxe4 {[%clk 0:01:13.5]} 25... fxe4 {[%clk 0:00:33.6]} 26. Qxe4
{[%clk 0:01:14.4]} 26... Rae8 {[%clk 0:00:29.3]} 27. Qd4+ {[%clk 0:01:10.3]}
27... Qe5 {[%clk 0:00:21.7]} 28. Qxg4+ {[%clk 0:01:09.6]} 28... Qg5 {[%clk
0:00:14.2]} 29. Qd4+ {[%clk 0:01:08]} 29... Kg8 {[%clk 0:00:12]} 30. Nf3 {[%clk
0:01:00.1]} 30... Qg6+ {[%clk 0:00:11.2]} 31. Kc1 {[%clk 0:00:58.8]} 31... Rd8
{[%clk 0:00:11.4]} 32. Qe3 {[%clk 0:00:53.7]} 32... Rfe8 {[%clk 0:00:10.5]} 33.
Qxh6 {[%clk 0:00:51]} 33... Rd1+ {[%clk 0:00:05.4]} 34. Kxd1 {[%clk 0:00:45.6]}
34... Qb1+ {[%clk 0:00:05.7]} 35. Qc1 {[%clk 0:00:40.1]} 35... Rd8+ {[%clk
0:00:03.6]} 36. Nd2 {[%clk 0:00:40]} 36... Qd3 {[%clk 0:00:03.2]} 37. Qc3 {[%clk
0:00:34.6]} 37... Qf1+ {[%clk 0:00:02.2]} 38. Kc2 {[%clk 0:00:34.6]} 38... Qg1
{[%clk 0:00:02.3]} 39. Rh8+ {[%clk 0:00:32.6]} 1-0

[Event "*** SCC Grand Prix: Titled Tuesday Blitz"]
[Site "Chess.com"]
[Date "2020.08.11"]
[Round "8"]
[White "tsvet2005"]
[Black "vova-79"]
[Result "0-1"]
[WhiteElo "2573"]
[BlackElo "2471"]
[TimeControl "180+1"]
[EndTime "11:34:06 PDT"]
[Termination "vova-79 won by checkmate"]

1. d4 {[%clk 0:02:59.7]} 1... d5 {[%clk 0:02:59.2]} 2. c4 {[%clk 0:02:59.6]}
2... e6 {[%clk 0:02:58.8]} 3. Nc3 {[%clk 0:02:59.8]} 3... c6 {[%clk 0:02:58.4]}
4. Nf3 {[%clk 0:02:59]} 4... Nf6 {[%clk 0:02:57.6]} 5. e3 {[%clk 0:02:59.3]}
5... Nbd7 {[%clk 0:02:56.9]} 6. Bd3 {[%clk 0:02:59.8]} 6... Be7 {[%clk
0:02:56.2]} 7. O-O {[%clk 0:02:56.5]} 7... O-O {[%clk 0:02:55.6]} 8. e4 {[%clk
0:02:56.3]} 8... dxe4 {[%clk 0:02:56.5]} 9. Nxe4 {[%clk 0:02:57.2]} 9... c5
{[%clk 0:02:56.5]} 10. dxc5 {[%clk 0:02:37.4]} 10... Nxc5 {[%clk 0:02:51.6]} 11.
Nxc5 {[%clk 0:02:37.4]} 11... Bxc5 {[%clk 0:02:49.6]} 12. Bg5 {[%clk 0:02:38.3]}
12... b6 {[%clk 0:02:48.8]} 13. Qc2 {[%clk 0:02:32.1]} 13... h6 {[%clk
0:02:46.7]} 14. Bh4 {[%clk 0:02:27.1]} 14... Bb7 {[%clk 0:02:45.5]} 15. Rad1
{[%clk 0:02:23.3]} 15... Qc7 {[%clk 0:02:17.3]} 16. Bxf6 {[%clk 0:02:08.8]}
16... Bxf3 {[%clk 0:02:11.6]} 17. gxf3 {[%clk 0:01:56.1]} 17... gxf6 {[%clk
0:02:10.3]} 18. Qc1 {[%clk 0:01:52.7]} 18... Kg7 {[%clk 0:02:02.1]} 19. Kh1
{[%clk 0:01:52.4]} 19... Rh8 {[%clk 0:01:57.2]} 20. Rg1+ {[%clk 0:01:37.6]}
20... Kf8 {[%clk 0:01:56.8]} 21. Rg2 {[%clk 0:01:38.5]} 21... Rd8 {[%clk
0:01:54]} 22. Qc2 {[%clk 0:01:30.6]} 22... Qf4 {[%clk 0:01:49.1]} 23. Qe2 {[%clk
0:01:08.1]} 23... Ke7 {[%clk 0:01:34.3]} 24. Rg4 {[%clk 0:01:06.7]} 24... Qe5
{[%clk 0:01:27.9]} 25. Re4 {[%clk 0:01:01.4]} 25... Qh5 {[%clk 0:01:24]} 26. Re1
{[%clk 0:00:56.3]} 26... Rd6 {[%clk 0:01:15.1]} 27. Bc2 {[%clk 0:00:50.3]} 27...
Rhd8 {[%clk 0:01:09.4]} 28. a3 {[%clk 0:00:50.5]} 28... a5 {[%clk 0:00:57.2]}
29. Bb1 {[%clk 0:00:34.1]} 29... Kf8 {[%clk 0:00:53.8]} 30. Rg4 {[%clk
0:00:16.3]} 30... Rd2 {[%clk 0:00:51]} 31. Qe4 {[%clk 0:00:16.8]} 31... Rxf2
{[%clk 0:00:49.8]} 32. h4 {[%clk 0:00:13.6]} 32... f5 {[%clk 0:00:42.1]} 33. Qe5
{[%clk 0:00:11]} 33... fxg4 {[%clk 0:00:41.9]} 34. Qxh5 {[%clk 0:00:10.7]} 34...
g3 {[%clk 0:00:38.7]} 35. Qxh6+ {[%clk 0:00:09.5]} 35... Ke8 {[%clk 0:00:37]}
36. Qh8+ {[%clk 0:00:04.1]} 36... Ke7 {[%clk 0:00:35.1]} 37. Qxd8+ {[%clk
0:00:02.5]} 37... Kxd8 {[%clk 0:00:35]} 38. Rd1+ {[%clk 0:00:03.4]} 38... Ke7
{[%clk 0:00:34.8]} 39. b4 {[%clk 0:00:01.1]} 39... Rh2# {[%clk 0:00:34.4]} 0-1

[Event "*** SCC Grand Prix: Titled Tuesday Blitz"]
[Site "Chess.com"]
[Date "2020.08.11"]
[Round "8"]
[White "Son_of_Sultan"]
[Black "Fh2411"]
[Result "1-0"]
[WhiteElo "2710"]
[BlackElo "2562"]
[TimeControl "180+1"]
[EndTime "11:34:08 PDT"]
[Termination "Son_of_Sultan won by resignation"]

1. Nf3 {[%clk 0:03:00.2]} 1... d5 {[%clk 0:02:59.6]} 2. d4 {[%clk 0:02:56.2]}
2... c6 {[%clk 0:03:00.5]} 3. g3 {[%clk 0:02:47.6]} 3... Nf6 {[%clk 0:02:54.7]}
4. c4 {[%clk 0:02:36.7]} 4... Bg4 {[%clk 0:02:52.2]} 5. Ne5 {[%clk 0:02:35]}
5... Be6 {[%clk 0:02:52.1]} 6. cxd5 {[%clk 0:02:30.2]} 6... Bxd5 {[%clk
0:02:51.2]} 7. f3 {[%clk 0:02:28.5]} 7... Nfd7 {[%clk 0:02:32.7]} 8. Nd3 {[%clk
0:02:09.4]} 8... f6 {[%clk 0:02:19.6]} 9. Nc3 {[%clk 0:01:58.7]} 9... Bf7 {[%clk
0:02:19.3]} 10. Bg2 {[%clk 0:01:48]} 10... e6 {[%clk 0:02:17.5]} 11. e4 {[%clk
0:01:42]} 11... Be7 {[%clk 0:02:17.2]} 12. O-O {[%clk 0:01:41.1]} 12... O-O
{[%clk 0:02:16.7]} 13. Be3 {[%clk 0:01:41.2]} 13... Na6 {[%clk 0:02:13.6]} 14.
Qe2 {[%clk 0:01:39.7]} 14... Nb4 {[%clk 0:02:12.9]} 15. Nf2 {[%clk 0:01:34.6]}
15... e5 {[%clk 0:02:04.9]} 16. Rfd1 {[%clk 0:01:28.6]} 16... Qc7 {[%clk
0:01:12.7]} 17. a3 {[%clk 0:01:25.6]} 17... exd4 {[%clk 0:01:10]} 18. Rxd4
{[%clk 0:01:09.3]} 18... Na6 {[%clk 0:01:09.8]} 19. Rad1 {[%clk 0:01:04.3]}
19... Rfd8 {[%clk 0:01:07.4]} 20. f4 {[%clk 0:00:53.9]} 20... Bc5 {[%clk
0:01:02.6]} 21. R4d2 {[%clk 0:00:52.2]} 21... Bxe3 {[%clk 0:01:01.8]} 22. Qxe3
{[%clk 0:00:52.6]} 22... Ndc5 {[%clk 0:00:53.9]} 23. b4 {[%clk 0:00:46.2]} 23...
Rxd2 {[%clk 0:00:41.6]} 24. Qxd2 {[%clk 0:00:37.3]} 24... Nb3 {[%clk 0:00:37.6]}
25. Qe3 {[%clk 0:00:32.4]} 25... Qb6 {[%clk 0:00:24.5]} 26. Qxb6 {[%clk
0:00:29.5]} 26... axb6 {[%clk 0:00:25.4]} 27. Rd7 {[%clk 0:00:24]} 27... Rb8
{[%clk 0:00:21]} 28. Bh3 {[%clk 0:00:22.1]} 28... b5 {[%clk 0:00:19]} 29. e5
{[%clk 0:00:21.6]} 29... Bc4 {[%clk 0:00:18.5]} 30. exf6 {[%clk 0:00:20.1]}
30... gxf6 {[%clk 0:00:18.3]} 31. Nce4 {[%clk 0:00:19.8]} 31... Rf8 {[%clk
0:00:16.8]} 32. Ng4 {[%clk 0:00:19.3]} 32... Rf7 {[%clk 0:00:13.4]} 33. Nh6+
{[%clk 0:00:18.8]} 33... Kg7 {[%clk 0:00:13]} 34. Nxf7 {[%clk 0:00:19.7]} 34...
Bxf7 {[%clk 0:00:13.4]} 35. Nd6 {[%clk 0:00:19.7]} 1-0

[Event "*** SCC Grand Prix: Titled Tuesday Blitz"]
[Site "Chess.com"]
[Date "2020.08.11"]
[Round "8"]
[White "Sn00pPawn"]
[Black "queen_iryna"]
[Result "0-1"]
[WhiteElo "2015"]
[BlackElo "2247"]
[TimeControl "180+1"]
[EndTime "11:34:08 PDT"]
[Termination "queen_iryna won on time"]

1. e4 {[%clk 0:03:00.9]} 1... d6 {[%clk 0:02:58.1]} 2. d4 {[%clk 0:02:59.5]}
2... Nf6 {[%clk 0:02:55.6]} 3. Nc3 {[%clk 0:02:58.8]} 3... e5 {[%clk 0:02:54.5]}
4. dxe5 {[%clk 0:02:27]} 4... dxe5 {[%clk 0:02:55.4]} 5. Qxd8+ {[%clk
0:02:26.9]} 5... Kxd8 {[%clk 0:02:56.3]} 6. Nf3 {[%clk 0:02:18.2]} 6... Bd6
{[%clk 0:02:54.7]} 7. Bg5 {[%clk 0:02:08]} 7... Be6 {[%clk 0:02:49.9]} 8. O-O-O
{[%clk 0:02:04.6]} 8... Nd7 {[%clk 0:02:45.4]} 9. Nb5 {[%clk 0:01:56.2]} 9...
Ke7 {[%clk 0:02:44.6]} 10. Kb1 {[%clk 0:01:34.2]} 10... h6 {[%clk 0:02:41.2]}
11. Bxf6+ {[%clk 0:01:22.4]} 11... Nxf6 {[%clk 0:02:42.1]} 12. Bd3 {[%clk
0:01:12.6]} 12... a6 {[%clk 0:02:35.6]} 13. Nxd6 {[%clk 0:01:09]} 13... cxd6
{[%clk 0:02:36.5]} 14. h3 {[%clk 0:01:04.1]} 14... Rhc8 {[%clk 0:02:35]} 15.
Rhe1 {[%clk 0:00:57.7]} 15... b5 {[%clk 0:02:25.7]} 16. Nd2 {[%clk 0:00:51.4]}
16... Rab8 {[%clk 0:02:17.6]} 17. Nf1 {[%clk 0:00:49.8]} 17... a5 {[%clk
0:02:16.3]} 18. Ne3 {[%clk 0:00:48.2]} 18... b4 {[%clk 0:02:08.8]} 19. b3 {[%clk
0:00:31.3]} 19... Rc3 {[%clk 0:02:01.5]} 20. f3 {[%clk 0:00:27.7]} 20... a4
{[%clk 0:01:57.9]} 21. Bc4 {[%clk 0:00:25.6]} 21... axb3 {[%clk 0:01:49.6]} 22.
axb3 {[%clk 0:00:23.7]} 22... Ra8 {[%clk 0:01:43.9]} 23. Kb2 {[%clk 0:00:18.4]}
23... Nd7 {[%clk 0:01:34.1]} 24. Rd2 {[%clk 0:00:14.5]} 24... Nb6 {[%clk
0:01:28.4]} 25. Bxe6 {[%clk 0:00:13]} 25... fxe6 {[%clk 0:01:29.3]} 26. Nd1
{[%clk 0:00:10.5]} 26... Rc5 {[%clk 0:01:26.5]} 27. Nf2 {[%clk 0:00:10.5]} 27...
Rca5 {[%clk 0:01:25.6]} 28. Rdd1 {[%clk 0:00:09.3]} 28... Ra2+ {[%clk
0:01:24.6]} 29. Kc1 {[%clk 0:00:09.1]} 29... Rc8 {[%clk 0:01:23.4]} 30. Re2
{[%clk 0:00:08.2]} 30... Na4 {[%clk 0:01:11.3]} 31. Rd3 {[%clk 0:00:05.7]} 31...
Nc5 {[%clk 0:00:47.6]} 32. Rdd2 {[%clk 0:00:03.6]} 32... Nxb3+ {[%clk 0:00:47]}
33. Kb1 {[%clk 0:00:04.5]} 33... Nxd2+ {[%clk 0:00:43.8]} 34. Rxd2 {[%clk
0:00:05.4]} 34... Rca8 {[%clk 0:00:41.7]} 35. Nd3 {[%clk 0:00:04.5]} 35... b3
{[%clk 0:00:40.9]} 36. Nb4 {[%clk 0:00:01.5]} 36... bxc2+ {[%clk 0:00:41]} 37.
Rxc2 {[%clk 0:00:01.7]} 37... Rxc2 {[%clk 0:00:40.8]} 38. Nxc2 {[%clk
0:00:01.2]} 38... d5 {[%clk 0:00:41]} 39. Kc1 {[%clk 0:00:01.3]} 39... Kd6
{[%clk 0:00:41.1]} 40. Kd2 {[%clk 0:00:01.4]} 40... Ra2 {[%clk 0:00:39.6]} 41.
Kc3 {[%clk 0:00:01.4]} 41... d4+ {[%clk 0:00:39]} 42. Kd3 {[%clk 0:00:01.3]}
42... Kc5 {[%clk 0:00:37]} 0-1

[Event "*** SCC Grand Prix: Titled Tuesday Blitz"]
[Site "Chess.com"]
[Date "2020.08.11"]
[Round "8"]
[White "ThePatrick27"]
[Black "adotand"]
[Result "1-0"]
[WhiteElo "2485"]
[BlackElo "2752"]
[TimeControl "180+1"]
[EndTime "11:34:09 PDT"]
[Termination "ThePatrick27 won by resignation"]

1. d4 {[%clk 0:02:54.5]} 1... Nf6 {[%clk 0:03:00.2]} 2. c4 {[%clk 0:02:54.1]}
2... g6 {[%clk 0:03:00.7]} 3. Nc3 {[%clk 0:02:54.1]} 3... Bg7 {[%clk 0:03:01.3]}
4. e4 {[%clk 0:02:54]} 4... d6 {[%clk 0:03:01.9]} 5. Nf3 {[%clk 0:02:54.1]} 5...
O-O {[%clk 0:03:02.2]} 6. Be2 {[%clk 0:02:52.8]} 6... e5 {[%clk 0:03:02.4]} 7.
O-O {[%clk 0:02:51.4]} 7... Nc6 {[%clk 0:03:02]} 8. d5 {[%clk 0:02:50.8]} 8...
Ne7 {[%clk 0:03:02.5]} 9. Ne1 {[%clk 0:02:51.2]} 9... Nd7 {[%clk 0:03:00]} 10.
Be3 {[%clk 0:02:49]} 10... f5 {[%clk 0:03:00.3]} 11. f3 {[%clk 0:02:49.4]} 11...
f4 {[%clk 0:03:00.8]} 12. Bf2 {[%clk 0:02:50]} 12... g5 {[%clk 0:03:01.4]} 13.
Rc1 {[%clk 0:02:50]} 13... Ng6 {[%clk 0:03:01.1]} 14. Nb5 {[%clk 0:02:49.9]}
14... a6 {[%clk 0:02:50]} 15. Na7 {[%clk 0:02:48.9]} 15... Rxa7 {[%clk
0:02:49.6]} 16. Bxa7 {[%clk 0:02:49.8]} 16... b6 {[%clk 0:02:43.4]} 17. b4
{[%clk 0:02:49.7]} 17... Rf7 {[%clk 0:02:23.7]} 18. Nd3 {[%clk 0:02:43.4]} 18...
Bf8 {[%clk 0:02:15.4]} 19. a4 {[%clk 0:02:29.9]} 19... Nf6 {[%clk 0:01:49.9]}
20. c5 {[%clk 0:02:22]} 20... g4 {[%clk 0:01:46]} 21. a5 {[%clk 0:02:09.4]}
21... g3 {[%clk 0:01:37.7]} 22. cxb6 {[%clk 0:01:51.8]} 22... Nh5 {[%clk
0:01:32]} 23. bxc7 {[%clk 0:01:02.7]} 23... Qh4 {[%clk 0:01:30.3]} 24. h3 {[%clk
0:01:00.5]} 24... Bxh3 {[%clk 0:01:27.9]} 25. gxh3 {[%clk 0:01:01.4]} 25... Qxh3
{[%clk 0:01:28.4]} 26. Rf2 {[%clk 0:01:00.5]} 26... gxf2+ {[%clk 0:01:28.3]} 27.
Nxf2 {[%clk 0:00:56.5]} 27... Qg3+ {[%clk 0:01:18.3]} 28. Kf1 {[%clk 0:00:56.7]}
28... Ne7 {[%clk 0:01:12.3]} 29. Bb6 {[%clk 0:00:40.1]} 29... Nc8 {[%clk
0:01:04.6]} 30. Bxa6 {[%clk 0:00:40.1]} 30... Ne7 {[%clk 0:01:04.2]} 31. c8=Q
{[%clk 0:00:38.4]} 31... Nxc8 {[%clk 0:01:04.5]} 32. Bxc8 {[%clk 0:00:39.3]}
32... Rg7 {[%clk 0:01:04.5]} 33. Be6+ {[%clk 0:00:37.6]} 33... Kh8 {[%clk
0:01:04.3]} 34. Rc8 {[%clk 0:00:34.5]} 34... Qg2+ {[%clk 0:00:54.1]} 35. Ke2
{[%clk 0:00:33.8]} 35... Rg3 {[%clk 0:00:52.2]} 36. Rxf8+ {[%clk 0:00:32.5]}
36... Kg7 {[%clk 0:00:52.8]} 37. Rg8+ {[%clk 0:00:32.4]} 37... Kh6 {[%clk
0:00:52.7]} 38. Rxg3 {[%clk 0:00:28.6]} 38... fxg3 {[%clk 0:00:53]} 39. Be3+
{[%clk 0:00:24.4]} 39... Nf4+ {[%clk 0:00:53.4]} 40. Bxf4+ {[%clk 0:00:24.6]}
40... exf4 {[%clk 0:00:54.3]} 41. Qf1 {[%clk 0:00:19.4]} 41... Qh2 {[%clk
0:00:33.8]} 42. Qh3+ {[%clk 0:00:19.3]} 42... Qxh3 {[%clk 0:00:31.1]} 43. Nxh3
{[%clk 0:00:20.2]} 43... Kg6 {[%clk 0:00:30.4]} 44. a6 {[%clk 0:00:20.3]} 44...
g2 {[%clk 0:00:28.2]} 45. a7 {[%clk 0:00:20.4]} 45... g1=Q {[%clk 0:00:28.7]}
46. Nxg1 {[%clk 0:00:20.4]} 1-0